fUSD/lending_fUSD_20250809
["ID","MTS","AMOUNT","RATE_DAILY","PERIOD"]
[378171398,1754761843238,-151.0,0.00020888,2]
[378171400,1754761843247,-467.140575,0.00020888,2]
[378171402,1754761843256,-467.140575,0.00020888,2]
[378171404,1754761843266,-7595.39589363,0.00020888,2]
[378171406,1754761843275,-200.0,0.00020889,2]
[378171408,1754761843284,-200.0,0.00020889,2]
[378171410,1754761843293,-200.0,0.00020889,2]
[378171412,1754761843303,-7595.39589363,0.00020889,2]
[378171414,1754761843312,-150.0,0.0002089,2]
[378171416,1754761843322,-7595.39589363,0.00020891,2]
[378171418,1754761843331,-500.0,0.00020892,2]
[378171420,1754761843341,-150.0,0.00020892,2]
[378171422,1754761843350,-150.0,0.00020892,2]
[378171424,1754761843359,-150.0,0.00020892,2]
[378171426,1754761843369,-200.0,0.00020892,2]
[378171428,1754761843378,-228.09633422,0.00020892,2]
[378171430,1754761843388,-150.0,0.00020892,2]
[378171432,1754761843399,-150.0,0.00020892,2]
[378171434,1754761843411,-150.0,0.00020892,2]
[378171436,1754761843420,-150.0,0.00020892,2]
[378171438,1754761843430,-150.0,0.00020892,2]
[378171440,1754761843439,-150.0,0.00020892,2]
[378171442,1754761843450,-262.6977922,0.00020892,2]
[378171444,1754761843459,-7595.39589363,0.00020892,2]
[378171446,1754761843469,-150.0,0.00020893,2]
[378171448,1754761843479,-7595.39589363,0.00020893,2]
[378171450,1754761843489,-400.0,0.00020895,2]
[378171452,1754761843498,-1000.0,0.00020895,2]
[378171454,1754761843507,-931.1,0.00020895,2]
[378171456,1754761843516,-150.0,0.00020898,2]
[378171458,1754761843526,-168.0,0.000209,2]
[378171460,1754761843535,-151.0,0.000209,2]
[378171462,1754761843544,-205.21151766,0.000209,2]
[378171464,1754761843553,-151.0,0.000209,2]
[378171466,1754761843562,-151.0,0.000209,2]
[378171468,1754761843573,-791.65801518,0.000209,2]
[378171470,1754761843583,-261.5369,0.000209,2]
[378171472,1754761843592,-1933.34922481,0.000209,2]
[378171474,1754761843601,-150.51393084,0.000209,2]
[378171476,1754761843610,-969.51192393,0.00020902,2]
[378171478,1754761843619,-150.0,0.00020906,2]
[378171480,1754761843628,-150.0,0.00020909,2]
[378171482,1754761843637,-150.0,0.00020917,2]
[378171484,1754761843646,-150.0,0.00020923,2]
[378171486,1754761843655,-631.32361229,0.00020928,2]
[378171488,1754761843665,-1000.0,0.00020928,2]
[378171490,1754761843674,-150.0,0.00020929,2]
[378171492,1754761843683,-150.0,0.00020929,2]
[378171494,1754761843693,-1000.0,0.00020931,2]
[378171496,1754761843702,-168.0,0.00020932,2]
[378171499,1754761843712,-150.0,0.00020932,2]
[378171501,1754761843721,-150.0,0.00020933,2]
[378171503,1754761843731,-150.0,0.00020934,2]
[378171505,1754761843740,-150.0,0.0002094,2]
[378171507,1754761843750,-150.0,0.00020944,2]
[378171508,1754761843759,-1000.0,0.00020947,2]
[378171511,1754761843769,-1000.0,0.00020951,2]
[378171513,1754761843778,-150.0,0.00020955,2]
[378171515,1754761843788,-150.0,0.00020963,2]
[378171517,1754761843797,-598.02646376,0.00020973,2]
[378171518,1754761843806,-500.0,0.00020973,2]
[378171520,1754761843816,-500.0,0.00020973,2]
[378171522,1754761843825,-500.0,0.00020973,2]
[378171525,1754761843835,-170.15466769,0.00020973,2]
[378171527,1754761843845,-500.0,0.00020973,2]
[378171528,1754761843854,-150.0,0.00020973,2]
[378171531,1754761843864,-163.05171249,0.00020975,2]
[378171533,1754761843873,-203.29304971,0.00020975,2]
[378171535,1754761843882,-151.0,0.00020975,2]
[378171536,1754761843891,-151.0,0.00020975,2]
[378171539,1754761843901,-151.0,0.00020975,2]
[378171541,1754761843910,-151.0,0.00020975,2]
[378171543,1754761843919,-151.0,0.00020975,2]
[378171545,1754761843929,-151.0,0.00020975,2]
[378171547,1754761843938,-151.0,0.00020975,2]
[378171549,1754761843947,-151.0,0.00020975,2]
[378171551,1754761843956,-151.0,0.00020975,2]
[378171553,1754761843965,-151.0,0.00020975,2]
[378171555,1754761843975,-151.0,0.00020975,2]
[378171557,1754761843984,-151.0,0.00020975,2]
[378171559,1754761843993,-151.0,0.00020975,2]
[378171561,1754761844003,-151.0,0.00020975,2]
[378171562,1754761844012,-151.0,0.00020975,2]
[378171564,1754761844021,-151.0,0.00020975,2]
[378171566,1754761844030,-151.0,0.00020975,2]
[378171568,1754761844039,-151.0,0.00020975,2]
[378171570,1754761844049,-151.0,0.00020975,2]
[378171573,1754761844059,-151.0,0.00020975,2]
[378171575,1754761844068,-151.0,0.00020975,2]
[378171577,1754761844078,-151.0,0.00020975,2]
[378171579,1754761844087,-151.0,0.00020975,2]
[378171581,1754761844097,-151.0,0.00020975,2]
[378171583,1754761844106,-151.0,0.00020975,2]
[378171584,1754761844115,-151.0,0.00020975,2]
[378171586,1754761844124,-151.0,0.00020975,2]
[378171588,1754761844133,-151.0,0.00020975,2]
[378171590,1754761844143,-151.0,0.00020975,2]
[378171592,1754761844152,-151.0,0.00020975,2]
[378171594,1754761844161,-151.0,0.00020975,2]
[378171596,1754761844170,-151.0,0.00020975,2]
[378171598,1754761844179,-151.0,0.00020975,2]
[378171600,1754761844188,-242.69556983,0.00020975,2]
[378171602,1754761844197,-400.0,0.00020986,2]
[378171604,1754761844206,-260.77552978,0.00020986,4]
[378171606,1754761844215,-150.0,0.00020986,4]
[378171608,1754761844225,-891.66270328,0.00020988,2]
[378171610,1754761844234,-60671.83603852,0.00020988,2]
[378171613,1754761844251,-926.35,0.00020988,2]
[378171763,1754761845636,-888.0,0.00020357,3]
[378171765,1754761845645,-177.94939297,0.00020682,2]
[378171767,1754761845655,-7595.39589363,0.00020895,2]
[378171768,1754761845664,-331679.68528565,0.00020988,2]
[378171769,1754761845673,-151.0,0.00020988,2]
[378171770,1754761845682,-151.0,0.00020988,2]
[378171771,1754761845691,-400.738417,0.00020988,2]
[378171772,1754761845700,-400.738417,0.00020988,2]
[378171773,1754761845709,-151.0,0.00020988,2]
[378171774,1754761845718,-151.0,0.00020988,2]
[378171775,1754761845729,-180.022582,0.00020988,2]
[378171776,1754761845738,-180.022582,0.00020988,2]
[378171777,1754761845747,-316.979359,0.00020988,2]
[378171778,1754761845756,-316.979359,0.00020988,2]
[378171779,1754761845765,-151.0,0.00020988,2]
[378171780,1754761845774,-151.0,0.00020988,2]
[378171782,1754761845783,-151.0,0.00020988,2]
[378171784,1754761845793,-179.036678,0.00020988,2]
[378171786,1754761845802,-179.036678,0.00020988,2]
[378171788,1754761845811,-151.0,0.00020988,2]
[378171790,1754761845820,-151.0,0.00020988,2]
[378171792,1754761845831,-151.0,0.00020988,2]
[378171794,1754761845840,-151.0,0.00020988,2]
[378171796,1754761845849,-151.0,0.00020988,2]
[378171798,1754761845858,-467.140575,0.00020988,2]
[378171800,1754761845868,-467.140575,0.00020988,2]
[378171802,1754761845877,-460.241387,0.00020988,2]
[378171804,1754761845886,-460.241387,0.00020988,2]
[378171806,1754761845895,-177.728181,0.00020988,2]
[378171808,1754761845905,-177.728181,0.00020988,2]
[378171810,1754761845914,-151.0,0.00020988,2]
[378171812,1754761845923,-1137.206967,0.00020988,2]
[378171814,1754761845932,-1137.206967,0.00020988,2]
[378171816,1754761845941,-151.0,0.00020988,2]
[378171818,1754761845950,-151.0,0.00020988,2]
[378171820,1754761845959,-151.0,0.00020988,2]
[378171822,1754761845968,-151.0,0.00020988,2]
[378171824,1754761845977,-490.734037,0.00020988,2]
[378171826,1754761845986,-490.734037,0.00020988,2]
[378171828,1754761845995,-287.054765,0.00020988,2]
[378171829,1754761846003,-287.054765,0.00020988,2]
[378171830,1754761846013,-219.08955,0.00020988,2]
[378171831,1754761846022,-219.08955,0.00020988,2]
[378171832,1754761846033,-6962.470802,0.00020988,2]
[378171833,1754761846042,-6962.470802,0.00020988,2]
[378171834,1754761846051,-151.0,0.00020988,2]
[378171835,1754761846060,-718.939718,0.00020988,2]
[378171836,1754761846070,-718.939718,0.00020988,2]
[378171837,1754761846080,-219.222952,0.00020988,2]
[378171838,1754761846089,-979.128654,0.00020988,2]
[378171839,1754761846099,-979.128654,0.00020988,2]
[378171840,1754761846109,-151.0,0.00020988,2]
[378171842,1754761846118,-198.0,0.00020988,2]
[378171844,1754761846127,-198.0,0.00020988,2]
[378171845,1754761846136,-276.06514677,0.00020988,2]
[378171847,1754761846145,-1309.943314,0.00020988,2]
[378171849,1754761846154,-1309.943314,0.00020988,2]
[378171851,1754761846163,-2425.52044,0.00020988,2]
[378171853,1754761846172,-2425.52044,0.00020988,2]
[378171855,1754761846181,-151.0,0.00020988,2]
[378171857,1754761846190,-151.0,0.00020988,2]
[378171859,1754761846198,-191.535686,0.00020988,2]
[378171861,1754761846208,-191.535686,0.00020988,2]
[378171863,1754761846217,-2527.511458,0.00020988,2]
[378171866,1754761846226,-2527.511458,0.00020988,2]
[378171868,1754761846234,-151.0,0.00020988,2]
[378171870,1754761846244,-460.157867,0.00020988,2]
[378171872,1754761846253,-460.157867,0.00020988,2]
[378171874,1754761846262,-154.149787,0.00020988,2]
[378171876,1754761846271,-151.0,0.00020988,2]
[378171878,1754761846283,-151.0,0.00020988,2]
[378171880,1754761846292,-152.199088,0.00020988,2]
[378171882,1754761846301,-1012.06103658,0.0002099,2]
[378171884,1754761846310,-197.3962837,0.0002099,2]
[378171886,1754761846319,-150.0,0.00020992,2]
[378171888,1754761846328,-300.0,0.00020999,2]
[378171890,1754761846337,-397.87489445,0.00020999,2]
[378171892,1754761846346,-361.52634386,0.00020999,2]
[378171894,1754761846355,-300.0,0.00020999,2]
[378171897,1754761846365,-300.0,0.00020999,2]
[378171899,1754761846374,-163.09355385,0.00020999,2]
[378171901,1754761846383,-19154.14709806,0.00020999,7]
[378171903,1754761846395,-1059.44477402,0.00020999,7]
[378171921,1754761846561,-1278.23622681,0.00020999,7]
[378171923,1754761846570,-151.833764,0.00020999,2]
[378171925,1754761846579,-151.0,0.00020999,2]
[378171927,1754761846589,-596.001346,0.00020999,2]
[378171929,1754761846598,-448.88867087,0.00020999,2]
[378171935,1754761846644,-147.11267513,0.00020999,2]
[378171937,1754761846653,-485.350208,0.00020999,2]
[378171939,1754761846662,-485.350208,0.00020999,2]
[378171941,1754761846672,-151.0,0.00020999,2]
[378171943,1754761846681,-400.738417,0.00020999,2]
[378171945,1754761846690,-400.738417,0.00020999,2]
[378171947,1754761846699,-151.0,0.00020999,2]
[378171949,1754761846708,-151.0,0.00020999,2]
[378171951,1754761846717,-172.714496,0.00020999,2]
[378171953,1754761846727,-151.0,0.00020999,2]
[378171955,1754761846735,-200.0,0.00020999,2]
[378171957,1754761846744,-99.180794,0.00020999,2]
[378171988,1754761847015,-100.819206,0.00020999,2]
[378171990,1754761847029,-200.0,0.00020999,2]
[378171992,1754761847038,-200.0,0.00020999,2]
[378171994,1754761847048,-87.180794,0.00020999,2]
[378172583,1754762205828,513.0,0.00018666,2]
[378172587,1754762218369,166.16,0.00013699,2]
[378172603,1754762332862,508.0,0.00018666,2]
[378172636,1754762709030,150.0,0.00018888,2]
[378172637,1754762712687,151.15903032,0.00018888,2]
[378172638,1754762713255,150.0,0.00018888,2]
[378172639,1754762717380,150.0,0.00018888,2]
[378172640,1754762717432,150.0,0.00018888,2]
[378172641,1754762719896,150.0,0.00018888,2]
[378172642,1754762720044,150.0,0.00018888,2]
[378172643,1754762726739,150.0,0.00018888,2]
[378172646,1754762731811,150.00000001,0.00018888,2]
[378172674,1754762948369,219.22570314,0.00018963,2]
[378172675,1754762953305,219.22570312,0.00018963,2]
[378172676,1754762954854,1381.53235687,0.00018963,2]
[378172677,1754762958360,219.22570312,0.00018964,2]
[378172678,1754762963312,219.22570312,0.00018964,2]
[378172693,1754763031725,-300.0,0.00019063,2]
[378172694,1754763031741,-250.0,0.00019063,2]
[378172695,1754763031751,-200.0,0.00019064,2]
[378172696,1754763031761,-269.47,0.00019064,2]
[378172697,1754763031779,-150.0,0.000191,2]
[378172698,1754763031789,-500.0,0.00019118,2]
[378172699,1754763031802,-170.0,0.00019162,7]
[378172700,1754763031815,-1460.93,0.0001917,2]
[378172701,1754763031827,-151.0,0.00019178,2]
[378172702,1754763031839,-363.34,0.00019178,2]
[378172703,1754763031849,-1000.0,0.00019182,2]
[378172704,1754763031862,-173.77,0.00019191,2]
[378172705,1754763031873,-300.0,0.00019196,2]
[378172706,1754763031893,-1200.0,0.00019196,2]
[378172707,1754763031917,-300.0,0.00019196,2]
[378172708,1754763031937,-285.63888451,0.00019197,2]
[378172709,1754763031950,-2643.79578823,0.00019197,2]
[378172710,1754763031967,-2403.00532726,0.00019197,2]
[378172711,1754763031977,-1903.79,0.00019253,2]
[378172712,1754763031987,-432.81,0.00019313,2]
[378172713,1754763032009,-168.0,0.00019392,2]
[378172714,1754763032022,-150.0,0.00019587,4]
[378172715,1754763032039,-564.0,0.00019609,2]
[378172716,1754763032050,-841.0,0.00019617,2]
[378172717,1754763032060,-513.0,0.00019619,2]
[378172718,1754763032071,-508.0,0.00019619,2]
[378172719,1754763032081,-389.0,0.0001962,2]
[378172720,1754763032091,-296.0,0.00019621,2]
[378172721,1754763032103,-855.0,0.00019632,2]
[378172722,1754763032113,-850.0,0.00019642,2]
[378172723,1754763032125,-204.01,0.00019643,2]
[378172724,1754763032134,-151.0,0.00019643,2]
[378172725,1754763032144,-151.0,0.00019643,2]
[378172726,1754763032155,-151.0,0.00019643,2]
[378172727,1754763032164,-151.0,0.00019643,2]
[378172728,1754763032174,-151.0,0.00019643,2]
[378172729,1754763032184,-500.0,0.00019643,2]
[378172730,1754763032194,-151.0,0.00019643,2]
[378172731,1754763032204,-500.0,0.00019643,2]
[378172732,1754763032213,-500.0,0.00019643,2]
[378172733,1754763032223,-500.0,0.00019643,2]
[378172734,1754763032232,-500.0,0.00019643,2]
[378172735,1754763032242,-466.86069023,0.00019643,2]
[378172736,1754763032251,-500.0,0.00019643,2]
[378172737,1754763032261,-500.0,0.00019643,2]
[378172738,1754763032271,-500.0,0.00019643,2]
[378172739,1754763032283,-151.0,0.00019643,2]
[378172740,1754763032293,-301.24,0.00019666,2]
[378172741,1754763032303,-300.58,0.00019666,2]
[378172742,1754763032312,-304.41,0.00019666,2]
[378172743,1754763032321,-303.28,0.00019666,2]
[378172744,1754763032331,-305.95,0.00019666,2]
[378172745,1754763032340,-302.1,0.00019666,2]
[378172746,1754763032354,-303.3,0.00019666,2]
[378172747,1754763032373,-302.38,0.00019666,2]
[378172748,1754763032383,-300.45,0.00019666,2]
[378172750,1754763032392,-300.22,0.00019666,2]
[378172752,1754763032401,-1321.0,0.00019794,2]
[378172754,1754763032410,-841.0,0.00019806,2]
[378172756,1754763032419,-1321.0,0.00019822,2]
[378172759,1754763032429,-359.76179104,0.00019844,2]
[378172760,1754763032438,-600.0,0.00019844,2]
[378172762,1754763032447,-160.0,0.00019844,2]
[378172764,1754763032456,-239.84119403,0.00019844,2]
[378172766,1754763032465,-426.47,0.00019889,2]
[378172767,1754763032474,-426.47,0.000199,2]
[378172768,1754763032483,-426.47,0.0001991,2]
[378172769,1754763032493,-173.77,0.00019911,2]
[378172770,1754763032502,-1321.0,0.00019912,2]
[378172771,1754763032511,-426.47,0.00019921,2]
[378172772,1754763032520,-426.47,0.00019931,2]
[378172773,1754763032530,-426.47,0.00019942,2]
[378172774,1754763032539,-5888.0,0.00019944,2]
[378172775,1754763032548,-600.0,0.00019945,2]
[378172776,1754763032557,-600.0,0.00019945,2]
[378172777,1754763032566,-402.25,0.00019945,2]
[378172778,1754763032576,-841.0,0.00019945,2]
[378172779,1754763032586,-426.47,0.00019952,2]
[378172780,1754763032595,-426.47,0.00019963,2]
[378172781,1754763032605,-426.47,0.00019973,2]
[378172782,1754763032615,-426.47,0.00019984,2]
[378172783,1754763032625,-426.47,0.00019994,2]
[378172784,1754763032634,-426.47,0.00020004,2]
[378172785,1754763032643,-1321.0,0.00020009,2]
[378172786,1754763032652,-426.47,0.00020015,2]
[378172787,1754763032662,-426.47,0.00020025,2]
[378172788,1754763032671,-426.47,0.00020036,2]
[378172789,1754763032680,-426.47,0.00020046,2]
[378172790,1754763032690,-426.47,0.00020057,2]
[378172791,1754763032698,-426.47,0.00020067,2]
[378172792,1754763032707,-426.47,0.00020078,2]
[378172793,1754763032717,-426.47,0.00020088,2]
[378172794,1754763032726,-150.0,0.00020164,2]
[378172795,1754763032735,-1321.0,0.00020241,2]
[378172796,1754763032745,-246.1770089,0.00020255,2]
[378172797,1754763032755,-432.81,0.00020279,2]
[378172798,1754763032765,-150.0,0.0002028,2]
[378172799,1754763032775,-150.0,0.00020287,4]
[378172800,1754763032784,-288.72612155,0.00020347,2]
[378172801,1754763032794,-344.70898362,0.00020369,2]
[378172802,1754763032803,-1321.0,0.0002037,2]
[378172803,1754763032812,-331.2752342,0.00020439,2]
[378172804,1754763032822,-373.82434685,0.00020531,2]
[378172805,1754763032832,-363.34,0.0002062,2]
[378172806,1754763032842,-416.3734595,0.00020622,2]
[378172807,1754763032851,-173.77,0.00020631,2]
[378172808,1754763032861,-697.9982,0.00020697,2]
[378172809,1754763032872,-645.7721,0.00020697,2]
[378172810,1754763032881,-595.1956,0.00020697,2]
[378172811,1754763032891,-458.92257214,0.00020714,2]
[378172812,1754763032900,-150.0,0.0002072,2]
[378172813,1754763032910,-150.0,0.00020758,2]
[378172814,1754763032920,-150.0,0.00020769,2]
[378172815,1754763032929,-150.0,0.00020772,2]
[378172816,1754763032938,-1000.0,0.00020783,2]
[378172817,1754763032948,-13706.1491,0.00020783,2]
[378172818,1754763032957,-2952.05617,0.0002079,2]
[378172819,1754763032966,-913.14,0.00020796,2]
[378172820,1754763032975,-592.02845215,0.00020796,2]
[378172821,1754763032985,-500.0,0.00020796,2]
[378172822,1754763032994,-500.0,0.00020796,2]
[378172823,1754763033003,-500.0,0.00020796,2]
[378172824,1754763033012,-500.0,0.00020796,2]
[378172825,1754763033021,-500.0,0.00020796,2]
[378172826,1754763033031,-500.0,0.00020796,2]
[378172827,1754763033040,-500.0,0.00020796,2]
[378172828,1754763033050,-500.0,0.00020796,2]
[378172829,1754763033060,-239.19702564,0.00020796,2]
[378172830,1754763033069,-500.0,0.00020796,2]
[378172831,1754763033078,-500.0,0.00020796,2]
[378172832,1754763033088,-500.0,0.00020796,2]
[378172833,1754763033097,-500.0,0.00020796,2]
[378172834,1754763033107,-500.0,0.00020796,2]
[378172835,1754763033116,-500.0,0.00020796,2]
[378172836,1754763033126,-500.0,0.00020796,2]
[378172837,1754763033135,-500.0,0.00020796,2]
[378172838,1754763033145,-500.0,0.00020796,2]
[378172839,1754763033154,-500.0,0.00020796,2]
[378172840,1754763033164,-500.0,0.00020796,2]
[378172841,1754763033173,-500.0,0.00020796,2]
[378172842,1754763033183,-500.0,0.00020796,2]
[378172843,1754763033192,-500.0,0.00020796,2]
[378172844,1754763033202,-500.0,0.00020796,2]
[378172845,1754763033211,-500.0,0.00020796,2]
[378172846,1754763033220,-500.0,0.00020796,2]
[378172847,1754763033229,-500.0,0.00020796,2]
[378172848,1754763033239,-500.0,0.00020796,2]
[378172849,1754763033248,-14972.88032108,0.00020797,2]
[378172850,1754763033360,-7702.78233905,0.00020797,2]
[378172851,1754763033372,-1895.02910548,0.00020797,2]
[378172852,1754763033395,-6600.84,0.00020797,2]
[378172853,1754763033438,-1604.50486129,0.00020797,2]
[378172854,1754763033468,-426.06973445,0.00019682,3]
[378172855,1754763033480,-461.93026555,0.00019682,3]
[378172856,1754763033491,-18.44874869,0.00020797,2]
[378172857,1754763033502,-1188.9208,0.00020797,2]
[378172858,1754763033514,-1209.12975589,0.00020797,2]
[378172859,1754763033526,-4089.85415509,0.00020797,2]
[378172860,1754763033537,-300.48897229,0.00020797,2]
[378172861,1754763033548,-2197.85946363,0.00020797,2]
[378172862,1754763033581,-3417.21014871,0.00020797,2]
[378172863,1754763033597,-11556.3921558,0.00020797,2]
[378172866,1754763037742,-655.00000018,0.00020797,2]
[378172867,1754763037765,-1888.0,0.00020797,2]
[378172868,1754763037817,-11476.84719789,0.00020797,2]
[378172869,1754763037924,-9336.80000001,0.00020797,2]
[378172870,1754763037981,-427.0629125,0.00020797,2]
[378173017,1754763039670,-5920.51318325,0.00020797,2]
[378173034,1754763039828,-5443.5,0.00020797,2]
[378173036,1754763039840,-299.146166,0.00020797,2]
[378173041,1754763039881,-460.40794006,0.00020797,2]
[378173047,1754763039939,-800.0,0.00020796,3]
[378173049,1754763039951,-88.0,0.00020796,3]
[378173051,1754763039961,-6380.3442241,0.00020797,2]
[378173053,1754763039972,-10185.56623341,0.00020797,2]
[378173055,1754763039982,-645.12296793,0.00020797,2]
[378173298,1754763042821,-2034.14085157,0.00020797,2]
[378173321,1754763043033,-349.68492,0.00020797,2]
[378173323,1754763043044,-5804.7956483,0.00020797,2]
[378173329,1754763043087,-888.0,0.00020796,3]
[378173331,1754763043097,-260.1,0.00020797,2]
[378173599,1754763045868,-5900.00000001,0.00020797,2]
[378173616,1754763046028,-65894.58622779,0.00020797,2]
[378173618,1754763046038,-150.0,0.00020798,2]
[378173621,1754763046047,-150.2166664,0.000208,2]
[378173623,1754763046057,-150.0,0.00020801,2]
[378173625,1754763046066,-501.47168479,0.00020806,2]
[378173627,1754763046076,-150.0,0.00020819,2]
[378173629,1754763046086,-175.328,0.00020829,2]
[378173631,1754763046096,-3192.644,0.00020829,2]
[378173633,1754763046105,-150.21666639,0.0002085,2]
[378173635,1754763046114,-150.0,0.00020854,2]
[378173637,1754763046124,-150.0,0.00020869,2]
[378173638,1754763046135,-1321.0,0.00020879,2]
[378173640,1754763046144,-1321.0,0.0002088,2]
[378173642,1754763046153,-246.12196141,0.0002089,2]
[378173644,1754763046163,-150.0,0.00020892,2]
[378173646,1754763046172,-150.0,0.00020892,2]
[378173649,1754763046182,-150.0,0.00020892,2]
[378173651,1754763046191,-150.0,0.00020892,2]
[378173652,1754763046200,-150.0,0.00020892,2]
[378173654,1754763046209,-150.0,0.00020892,2]
[378173656,1754763046219,-197.0,0.00020892,2]
[378173658,1754763046229,-150.0,0.00020892,2]
[378173660,1754763046238,-150.0,0.00020892,2]
[378173662,1754763046247,-150.0,0.00020892,2]
[378173664,1754763046257,-200.0,0.00020892,2]
[378173666,1754763046268,-150.0,0.00020892,2]
[378173668,1754763046277,-544.02079744,0.00020898,2]
[378173670,1754763046286,-1040.22,0.000209,2]
[378173672,1754763046295,-3738.83655198,0.000209,2]
[378173674,1754763046310,-312.75662295,0.000209,2]
[378173676,1754763046321,-3394.33076494,0.000209,2]
[378173679,1754763046333,-2554.07606013,0.000209,2]
[378173681,1754763046342,-5000.0,0.000209,2]
[378173683,1754763046351,-32710.7968233,0.000209,2]
[378174525,1754763196938,155.98,0.00013699,2]
[378174527,1754763303044,183.45,0.00015856,2]
[378174551,1754763907957,6863.8158003,0.00019,2]
[378174554,1754763926356,136993.13853528,0.00019,2]
[378174557,1754763986791,12042.86146472,0.00019,2]
[378174599,1754764124686,161.89,0.00013699,2]
[378174607,1754764231954,-200.0,0.000189,6]
[378174608,1754764231964,-178.96299838,0.000189,2]
[378174609,1754764231974,-55.82200162,0.000189,2]
[378174610,1754764232119,-182.64314034,0.000189,2]
[378174611,1754764232130,-500.0,0.00018973,2]
[378174612,1754764232140,-500.0,0.00018973,2]
[378174613,1754764232150,-297.43946204,0.00018973,2]
[378174614,1754764232230,-202.56053796,0.00018973,2]
[378174615,1754764232240,-1154.9741537,0.00018978,2]
[378174616,1754764232252,-3343.64,0.0001899,2]
[378174617,1754764232265,-3343.64,0.0001899,2]
[378174618,1754764232275,-198.16694138,0.0001899,2]
[378174620,1754764232285,-1200.0,0.00018998,2]
[378174621,1754764232294,-201.19831314,0.00018999,2]
[378174624,1754764232306,-98.80168686,0.00018999,2]
[378174626,1754764232315,-850.0,0.00018999,2]
[378174628,1754764232325,-155.635489,0.00018999,2]
[378174630,1754764232335,-332.72265926,0.00018999,2]
[378174632,1754764232344,-500.0,0.00018999,2]
[378174634,1754764232354,-500.0,0.00018999,2]
[378174635,1754764232364,-373.91970256,0.00018999,2]
[378174636,1754764232373,-37623.41171416,0.00019,2]
[378174637,1754764232384,-8085.76892802,0.00019,2]
[378174638,1754764232395,-16765.95789309,0.00019,2]
[378174639,1754764232405,-13257.31318406,0.00019,2]
[378174643,1754764237833,-4003.60005066,0.00019,2]
[378174644,1754764237943,-410.1979085,0.00019,2]
[378174645,1754764238057,-569.78247107,0.00019,2]
[378174646,1754764238067,-73.99962043,0.00019,2]
[378174812,1754764239935,-154.76924078,0.000189,2]
[378174814,1754764239945,-730831.37720704,0.00019,2]
[378174823,1754764240025,-270.76274387,0.00019,2]
[378174832,1754764240099,-494.24373185,0.00019,2]
[378174852,1754764240284,-54648.10074175,0.00019,2]
[378175129,1754764242886,-5272.08855024,0.00019,2]
[378175131,1754764242897,-14089.85834688,0.00019,2]
[378175133,1754764242911,-970.25318718,0.00019,2]
[378175143,1754764242995,-3377.79191509,0.00019,2]
[378175150,1754764243052,-405.96429784,0.00019,2]
[378175439,1754764245950,-12992.49123646,0.00019,2]
[378175457,1754764246115,-902.85649027,0.00019,2]
[378175590,1754764436231,183.45,0.00015481,2]
[378175595,1754764636300,513.0,0.00017725,2]
[378175601,1754764816361,509.0,0.00017725,2]
[378175628,1754765118818,150.0,0.000179,2]
[378175632,1754765179784,-156.89174121,0.00018138,2]
[378175635,1754765183065,-209.45463102,0.00018138,2]
[378175637,1754765184522,-177.35621352,0.00018138,2]
[378175638,1754765190249,-189.79427276,0.00018046,2]